Workbook

Sheet Dk_Df
B2: Wide-band Debye Dk(f) and Df(f) model
D4: Sweep: | E4: Plotting:
D5: Min | E5: Fmin[Hz]
B6: 4 | C6: 1000000 | D6: 0.75 | E6: 10000
D7: Max | E7: Fmax[Hz]
D8: 1.75 | E8: 1000000000
D9: Nsweep | E9: m
B10: 0.02 | D10: 200 | E10: =-2/PI()*Dk_Fo*Df_Fo -> -0.05092958179
A79: N_steps | B79: n | C79: Freq [Hz] | D79: Dk(f) | E79: Df(f)
A80: 100 | B80: 1 | C80: =F_min*incr_^(B80-1) -> 10000 | D80: =Dk_Fo+m_*LN(C80/F_o) -> 4.234539392 | E80: =Df_Fo*Dk_Fo/D80 -> 0.01889225547
A81: Incr_ | B81: 2 | C81: =F_min*incr_^(B81-1) -> 11233.24033 | D81: =Dk_Fo+m_*LN(C81/F_o) -> 4.22861668 | E81: =Df_Fo*Dk_Fo/D81 -> 0.01891871646
A82: =10^(LOG(F_max/F_min)/(N_steps-1)) -> 1.123324033 | B82: 3 | C82: 12618.56883 | D82: 4.222693968 | E82: 0.01894525168
B83: 4 | C83: 14174.74163 | D83: 4.216771256 | E83: 0.01897186144
B84: 5 | C84: 15922.82793 | D84: 4.210848544 | E84: 0.01899854606
B85: 6 | C85: 17886.49529 | D85: 4.204925832 | E85: 0.01902530584
B86: 7 | C86: 20092.33003 | D86: 4.19900312 | E86: 0.01905214112
B87: 8 | C87: 22570.1972 | D87: 4.193080408 | E87: 0.0190790522
B88: 9 | C88: 25353.64494 | D88: 4.187157696 | E88: 0.01910603942
B89: 10 | C89: 28480.35868 | D89: 4.181234984 | E89: 0.01913310309
B90: 11 | C90: 31992.67138 | D90: 4.175312273 | E90: 0.01916024354
B91: 12 | C91: 35938.13664 | D91: 4.169389561 | E91: 0.0191874611
B92: 13 | C92: 40370.17259 | D92: 4.163466849 | E92: 0.01921475609
B93: 14 | C93: 45348.78508 | D93: 4.157544137 | E93: 0.01924212885
B94: 15 | C94: 50941.38015 | D94: 4.151621425 | E94: 0.01926957972
B95: 16 | C95: 57223.67659 | D95: 4.145698713 | E95: 0.01929710901
B96: 17 | C96: 64280.73117 | D96: 4.139776001 | E96: 0.01932471708
B97: 18 | C97: 72208.09018 | D97: 4.133853289 | E97: 0.01935240426
B98: 19 | C98: 81113.08308 | D98: 4.127930577 | E98: 0.01938017089
B99: 20 | C99: 91116.27561 | D99: 4.122007865 | E99: 0.01940801731
B100: 21 | C100: 102353.1022 | D100: 4.116085153 | E100: 0.01943594387
B101: 22 | C101: 114975.6995 | D101: 4.110162442 | E101: 0.01946395091
B102: 23 | C102: 129154.9665 | D102: 4.10423973 | E102: 0.01949203879
B103: 24 | C103: 145082.8778 | D103: 4.098317018 | E103: 0.01952020784
B104: 25 | C104: 162975.0835 | D104: 4.092394306 | E104: 0.01954845844
B105: 26 | C105: 183073.828 | D105: 4.086471594 | E105: 0.01957679092
B106: 27 | C106: 205651.2308 | D106: 4.080548882 | E106: 0.01960520565
B107: 28 | C107: 231012.97 | D107: 4.07462617 | E107: 0.01963370299
B108: 29 | C108: 259502.4211 | D108: 4.068703458 | E108: 0.01966228329
B109: 30 | C109: 291505.3063 | D109: 4.062780746 | E109: 0.01969094691
B110: 31 | C110: 327454.9163 | D110: 4.056858034 | E110: 0.01971969424
B111: 32 | C111: 367837.9772 | D111: 4.050935322 | E111: 0.01974852562
B112: 33 | C112: 413201.24 | D112: 4.045012611 | E112: 0.01977744143
B113: 34 | C113: 464158.8834 | D113: 4.039089899 | E113: 0.01980644205
B114: 35 | C114: 521400.8288 | D114: 4.033167187 | E114: 0.01983552784
B115: 36 | C115: 585702.0818 | D115: 4.027244475 | E115: 0.01986469918
B116: 37 | C116: 657933.2247 | D116: 4.021321763 | E116: 0.01989395644
B117: 38 | C117: 739072.2034 | D117: 4.015399051 | E117: 0.01992330002
B118: 39 | C118: 830217.5681 | D118: 4.009476339 | E118: 0.01995273029
B119: 40 | C119: 932603.3469 | D119: 4.003553627 | E119: 0.01998224764
B120: 41 | C120: 1047615.753 | D120: 3.997630915 | E120: 0.02001185244
B121: 42 | C121: 1176811.952 | D121: 3.991708203 | E121: 0.0200415451
B122: 43 | C122: 1321941.148 | D122: 3.985785491 | E122: 0.02007132601
B123: 44 | C123: 1484968.262 | D123: 3.97986278 | E123: 0.02010119555
B124: 45 | C124: 1668100.537 | D124: 3.973940068 | E124: 0.02013115413
B125: 46 | C125: 1873817.423 | D125: 3.968017356 | E125: 0.02016120214
B126: 47 | C126: 2104904.145 | D126: 3.962094644 | E126: 0.02019133998
B127: 48 | C127: 2364489.413 | D127: 3.956171932 | E127: 0.02022156807
B128: 49 | C128: 2656087.783 | D128: 3.95024922 | E128: 0.02025188679
B129: 50 | C129: 2983647.24 | D129: 3.944326508 | E129: 0.02028229657
B130: 51 | C130: 3351602.651 | D130: 3.938403796 | E130: 0.02031279781
B131: 52 | C131: 3764935.807 | D131: 3.932481084 | E131: 0.02034339092
B132: 53 | C132: 4229242.874 | D132: 3.926558372 | E132: 0.02037407633
B133: 54 | C133: 4750810.162 | D133: 3.92063566 | E133: 0.02040485445
B134: 55 | C134: 5336699.231 | D134: 3.914712948 | E134: 0.0204357257
B135: 56 | C135: 5994842.503 | D135: 3.908790237 | E135: 0.0204666905
B136: 57 | C136: 6734150.658 | D136: 3.902867525 | E136: 0.02049774928
B137: 58 | C137: 7564633.276 | D137: 3.896944813 | E137: 0.02052890247
B138: 59 | C138: 8497534.359 | D138: 3.891022101 | E138: 0.0205601505
B139: 60 | C139: 9545484.567 | D139: 3.885099389 | E139: 0.02059149381
B140: 61 | C140: 10722672.22 | D140: 3.879176677 | E140: 0.02062293282
B141: 62 | C141: 12045035.4 | D141: 3.873253965 | E141: 0.02065446798
B142: 63 | C142: 13530477.75 | D142: 3.867331253 | E142: 0.02068609973
B143: 64 | C143: 15199110.83 | D143: 3.861408541 | E143: 0.02071782852
B144: 65 | C144: 17073526.47 | D144: 3.855485829 | E144: 0.02074965479
B145: 66 | C145: =F_min*incr_^(B145-1) -> 19179102.62 | D145: =Dk_Fo+m_*LN(C145/F_o) -> 3.849563117 | E145: =Df_Fo*Dk_Fo/D145 -> 0.02078157899
B146: 67 | C146: 21544346.9 | D146: 3.843640406 | E146: 0.02081360158
B147: 68 | C147: 24201282.65 | D147: 3.837717694 | E147: 0.020845723
B148: 69 | C148: 27185882.43 | D148: 3.831794982 | E148: 0.02087794373
B149: 70 | C149: 30538555.09 | D149: 3.82587227 | E149: 0.02091026421
B150: 71 | C150: 34304692.86 | D150: 3.819949558 | E150: 0.02094268492
B151: 72 | C151: 38535285.94 | D151: 3.814026846 | E151: 0.02097520632
B152: 73 | C152: 43287612.81 | D152: 3.808104134 | E152: 0.02100782888
B153: 74 | C153: 48626015.8 | D153: 3.802181422 | E153: 0.02104055307
B154: 75 | C154: 54622772.18 | D154: 3.79625871 | E154: 0.02107337937
B155: 76 | C155: 61359072.73 | D155: 3.790335998 | E155: 0.02110630826
B156: 77 | C156: 68926121.04 | D156: 3.784413286 | E156: 0.02113934022
B157: 78 | C157: 77426368.27 | D157: 3.778490575 | E157: 0.02117247573
B158: 79 | C158: 86974900.26 | D158: 3.772567863 | E158: 0.02120571529
B159: 80 | C159: 97700995.73 | D159: 3.766645151 | E159: 0.02123905937
B160: 81 | C160: 109749876.5 | D160: 3.760722439 | E160: 0.02127250849
B161: 82 | C161: 123284673.9 | D161: 3.754799727 | E161: 0.02130606312
B162: 83 | C162: 138488637.1 | D162: 3.748877015 | E162: 0.02133972378
B163: 84 | C163: 155567614.4 | D163: 3.742954303 | E163: 0.02137349097
B164: 85 | C164: 174752840 | D164: 3.737031591 | E164: 0.02140736519
B165: 86 | C165: 196304065 | D165: 3.731108879 | E165: 0.02144134695
B166: 87 | C166: 220513074 | D166: 3.725186167 | E166: 0.02147543677
B167: 88 | C167: 247707635.6 | D167: 3.719263455 | E167: 0.02150963516
B168: 89 | C168: 278255940.2 | D168: 3.713340744 | E168: 0.02154394264
B169: 90 | C169: 312571585 | D169: 3.707418032 | E169: 0.02157835974
B170: 91 | C170: 351119173.4 | D170: 3.70149532 | E170: 0.02161288698
B171: 92 | C171: 394420605.9 | D171: 3.695572608 | E171: 0.02164752489
B172: 93 | C172: 443062145.8 | D172: 3.689649896 | E172: 0.021682274
B173: 94 | C173: 497702356.4 | D173: 3.683727184 | E173: 0.02171713485
B174: 95 | C174: 559081018.3 | D174: 3.677804472 | E174: 0.02175210798
B175: 96 | C175: 628029144.2 | D175: 3.67188176 | E175: 0.02178719393
B176: 97 | C176: 705480231.1 | D176: 3.665959048 | E176: 0.02182239325
B177: 98 | C177: 792482898.4 | D177: 3.660036336 | E177: 0.02185770649
B178: 99 | C178: 890215085.4 | D178: 3.654113624 | E178: 0.02189313421
B179: 100 | C179: 1000000000 | D179: 3.648190913 | E179: 0.02192867696

Sheet Info
B7: Application information and hints:
B8: 1., Enter your data in the top highlighted area of worksheet. Select any of the red parameters and enter your data in the units shown.
B9: 2., Blue numbers are calculated output data. Do not overwrite them unless you understand its consequences in the spreadsheet.
B10: 3., If you click on any of the green buttons, it will initiate the sweep of the particular parameter between the Min and Max relative limits. To run sweeps, the spreadsheet has to allow macros.The speed of sweep can be controlled by the number of sweep steps (Nsweep) parameter.
B11: 4., The workbook has been tested in Excel 2000, Excel 2003 and Excel 2007. Note that Excel 2007 runs the macro orders of magnitude slower than earlier versions, even if you (re)save the file in Excel 2007 Macro-enabled workbook.
B12: 5., There is no error checking of your entered input data. Physically invalid input (e.g., negative frequency) may result in errors and/or meaningless output.
B13: 6., For explanatory information, see the worksheet "Reference". For suggested input data to look at, use the Workgroup Scenario items.
B14: 7., If Automatic Recalculation is selected in the Tools/Options menu, numerical and graphical outputs are automatically updated after each new entry.
B15: 8., This file uses dot (.) as separator between the integer and fractional parts of numbers. Preferences in your Microsoft Excel installation must be set accordingly.
B16: 9., The calculation part of the worksheets can be viewed and changed if necessary below the input/output areas. To navigate among cells, you can switch back on the Row and Column Headers and Scroll bars in the Tools/Options menu.

Sheet Reference
B2: Reference:
B3: Frequency-Domain Characterization of Power Distribution Networks. Artech House, 2007, pp. 106-109..
B35: Input parameters:
B36: Dk(fo): relative dielectric constant at the fo working frequency [-]
B37: Df(fo): dielectric loss tangent at the fo working frequency [-]
B38: fo: working frequency, where the Dk and Df values are specified [Hz]
B39: Min: unit-less multiplier of the nominal value; used to set the lower sweep range
B40: Max: unit-less multiplier of the nominal value; used to set the upper sweep range
B41: Nsweep: number of steps during sweep. Can be used to adjust animation speed.
B42: Fmin: minimum frequency for the output plots [Hz]
B43: Fmax: highest frequency for the output plots [Hz]
